Workbook

Sheet Cover Page
B1: Department of Managed Health Care/Department of Insurance
B2: Medical Loss Ratio Reporting Form
B3: Dental Coverage
A6: 1. | B6: MLR Reporting Year | C6: 2023
A7: 2. | B7: Enter DMHC Health Plan ID. Insurers may leave this field blank
A8: 3. | B8: Legal Name | C8: Dearborn Life Insurance Company
A9: 4. | B9: DBA | C9: Health Insurer
A10: 5. | B10: Federal Tax Exempt Status? Please enter Yes or No | C10: No
B14: Cell Key:
B15: Blank cells require input from Health plan or Health insurer
B18: Version 4.22.15
B19: Revised Version 5.26.15
B20: Revised Version 4.15.16 corrected dates for Cycle Year (CY)2015-2016 on TABs Parts 1, 2 and 4.
B21: Revised Version 5.10.17 12/31 and 3/31 Columns years to be auto populated on TABs Parts 1 and 2.
B22: Revised Version 5.20.19 Document Accessible

Sheet Pt 1 Summary of Data
B1: Department of Managed Health Care/Department of Insurance
B2: Medical Loss Ratio Reporting Form: Dental Coverage
B3: Part 1 - Summary of Data
B5: Health Plan ID | H5: Federal Tax Exempt
D6: ='Cover Page'!C7 -> 0 | H6: ='Cover Page'!C10 -> No
B7: Legal Name
D8: ='Cover Page'!C8 -> Dearborn Life Insurance Company
B9: dBA | E9: Part 1
D10: ='Cover Page'!C9 -> Health Insurer
B11: MLR Reporting Year
D12: ='Cover Page'!C6 -> 2023
G14: Health Insurance Coverage | M14: Health Insurance Coverage
G15: DHMO Products | M15: DPPO & Indemnity Products
E16: Individual | G16: Small Group | I16: Large Group | K16: Individual | M16: Small Group | O16: Large Group
E17: Total as of | F17: Total as of | G17: Total as of | H17: Total as of | I17: Total as of | J17: Total as of | K17: Total as of | L17: Total as of | M17: Total as of | N17: Total as of | O17: Total as of | P17: Total as of
D18: Part 1 NOTE: REFER TO MLR INSTRUCTIONS FOR IMPORTANT | E18: ="12/31/"&""&'Cover Page'!C$6 -> 12/31/2023 | F18: =DATE(YEAR(E18)+0,MONTH(E18)+3,DAY(E18)+0) -> 2024-03-31 | G18: ="12/31/"&""&'Cover Page'!C$6 -> 12/31/2023 | H18: =DATE(YEAR(G18)+0,MONTH(G18)+3,DAY(G18)+0) -> 2024-03-31 | I18: ="12/31/"&""&'Cover Page'!C$6 -> 12/31/2023 | J18: =DATE(YEAR(I18)+0,MONTH(I18)+3,DAY(I18)+0) -> 2024-03-31 | K18: ="12/31/"&""&'Cover Page'!C$6 -> 12/31/2023 | L18: =DATE(YEAR(K18)+0,MONTH(K18)+3,DAY(K18)+0) -> 2024-03-31 | M18: ="12/31/"&""&'Cover Page'!C$6 -> 12/31/2023 | N18: =DATE(YEAR(M18)+0,MONTH(M18)+3,DAY(M18)+0) -> 2024-03-31 | O18: ="12/31/"&""&'Cover Page'!C$6 -> 12/31/2023 | P18: =DATE(YEAR(O18)+0,MONTH(O18)+3,DAY(O18)+0) -> 2024-03-31
D19: INFORMATION ABOUT COMPLETING EACH COLUMN AND ROW. | E19: 1 | F19: 2 | G19: 3 | H19: 4 | I19: 5 | J19: 6 | K19: 7 | L19: 8 | M19: 9 | N19: 10 | O19: 11 | P19: 12
B20: 1. | C20: Premium
C21: 1.1 | D21: Total direct premium earned | E21: ='Pt 2 Premium and Claims'!E22+'Pt 2 Premium and Claims'!E23-'Pt 2 Premium and Claims'!E24-'Pt 2 Premium and Claims'!E25 -> 0 | F21: ='Pt 2 Premium and Claims'!F22+'Pt 2 Premium and Claims'!F23-'Pt 2 Premium and Claims'!F24-'Pt 2 Premium and Claims'!F25 -> 0 | G21: ='Pt 2 Premium and Claims'!G22+'Pt 2 Premium and Claims'!G23-'Pt 2 Premium and Claims'!G24-'Pt 2 Premium and Claims'!G25 -> 0 | H21: ='Pt 2 Premium and Claims'!H22+'Pt 2 Premium and Claims'!H23-'Pt 2 Premium and Claims'!H24-'Pt 2 Premium and Claims'!H25 -> 0 | I21: ='Pt 2 Premium and Claims'!I22+'Pt 2 Premium and Claims'!I23-'Pt 2 Premium and Claims'!I24-'Pt 2 Premium and Claims'!I25 -> 0 | J21: ='Pt 2 Premium and Claims'!J22+'Pt 2 Premium and Claims'!J23-'Pt 2 Premium and Claims'!J24-'Pt 2 Premium and Claims'!J25 -> 0 | K21: ='Pt 2 Premium and Claims'!K22+'Pt 2 Premium and Claims'!K23-'Pt 2 Premium and Claims'!K24-'Pt 2 Premium and Claims'!K25 -> 0 | L21: ='Pt 2 Premium and Claims'!L22+'Pt 2 Premium and Claims'!L23-'Pt 2 Premium and Claims'!L24-'Pt 2 Premium and Claims'!L25 -> 0 | M21: ='Pt 2 Premium and Claims'!M22+'Pt 2 Premium and Claims'!M23-'Pt 2 Premium and Claims'!M24-'Pt 2 Premium and Claims'!M25 -> 70760.77 | N21: ='Pt 2 Premium and Claims'!N22+'Pt 2 Premium and Claims'!N23-'Pt 2 Premium and Claims'!N24-'Pt 2 Premium and Claims'!N25 -> 70906.99 | O21: ='Pt 2 Premium and Claims'!O22+'Pt 2 Premium and Claims'!O23-'Pt 2 Premium and Claims'!O24-'Pt 2 Premium and Claims'!O25 -> 0 | P21: ='Pt 2 Premium and Claims'!P22+'Pt 2 Premium and Claims'!P23-'Pt 2 Premium and Claims'!P24-'Pt 2 Premium and Claims'!P25 -> 0
B23: 2. | C23: Claims
C24: 2.1 | D24: Total incurred claims (MLR Form Part 2, Line 2.11) | E24: ='Pt 2 Premium and Claims'!E51 -> 0 | F24: ='Pt 2 Premium and Claims'!F51 -> 0 | G24: ='Pt 2 Premium and Claims'!G51 -> 0 | H24: ='Pt 2 Premium and Claims'!H51 -> 0 | I24: ='Pt 2 Premium and Claims'!I51 -> 0 | J24: ='Pt 2 Premium and Claims'!J51 -> 0 | K24: ='Pt 2 Premium and Claims'!K51 -> 0 | L24: ='Pt 2 Premium and Claims'!L51 -> 0 | M24: ='Pt 2 Premium and Claims'!M51 -> 54347.3873 | N24: ='Pt 2 Premium and Claims'!N51 -> 47055.3533 | O24: ='Pt 2 Premium and Claims'!O51 -> 0 | P24: ='Pt 2 Premium and Claims'!P51 -> 0
B26: 3. | C26: Federal and State Taxes and Licensing or Regulatory Fees
C27: 3.1 | D27: Federal taxes and assessments incurred by the reporting health plan or health insurer during the MLR reporting year
D28: 3.1 a Federal income taxes deductible from premium in MLR calculations | M28: 0 | N28: 0
D29: 3.1 b Other Federal Taxes (other than income tax) and assessments deductible from premium
C30: 3.2 | D30: State insurance, premium and other taxes incurred by the reporting health plan or heath insurer during the MLR reporting year (deductible from premium in MLR calculation)
D31: 3.2 a State income, excise, business, and other taxes
D32: 3.2 b State premium taxes | M32: 1405 | N32: 1659
D33: 3.2 c Community benefit expenditures
C34: 3.3 | D34: Regulatory authority licenses and fees
C35: 3.4 | D35: Total Federal and State Taxes and fees to be excluded from premium | E35: =SUM(E$28:E$29,E$31,E$34+IF($H$6="No",IF(MAX(E$32:E$33)=0,MIN(E$32:E$33),MAX(E$32:E$33)),SUM(E$32:E$33))) -> 0 | F35: 0 | G35: 0 | H35: 0 | I35: 0 | J35: 0 | K35: 0 | L35: 0 | M35: 1405 | N35: 1659 | O35: 0 | P35: 0
B37: 4. | C37: Non-Claims Costs
C38: 4.1 | D38: Direct sales salaries and benefits
C39: 4.2 | D39: Agents and brokers fees and commissions | M39: 6014 | N39: 7324
C40: 4.3 | D40: Other taxes
D41: 4.3a Taxes and assessments (exclude amounts reported in Section 3 or Line 10)
D42: 4.3b Fines and penalties of regulatory authorities (exclude amounts reported in Line 3.3)
C43: 4.4 | D43: Other general and administrative expenses | M43: 24988 | N43: 31351
C44: 4.5 | D44: Total non-claims costs | E44: =SUM(SUM(E38:E39)+SUM(E41:E43)) -> 0 | F44: =SUM(SUM(F38:F39)+SUM(F41:F43)) -> 0 | G44: 0 | H44: 0 | I44: 0 | J44: 0 | K44: 0 | L44: 0 | M44: 31002 | N44: 38675 | O44: 0 | P44: 0
B46: 5. | C46: Other Indicators or information
C47: 5.1 | D47: Number of covered lives | M47: 119 | N47: 120
C48: 5.2 | D48: Member months | M48: 1422 | N48: 1424
C49: 5.3 | D49: Number of life-years | E49: =E48/12 -> 0 | F49: =F48/12 -> 0 | G49: 0 | H49: =H48/12 -> 0 | I49: 0 | J49: 0 | K49: 0 | L49: 0 | M49: =M48/12 -> 118.5 | N49: =N48/12 -> 118.6666667 | O49: 0 | P49: 0
E50: ="Grand Total as of "&""&TEXT(E$18,"MM/DD/YYYY")&" for ALL markets in col. 1-12." -> Grand Total as of 12/31/2023 for ALL markets in col. 1-12.
B51: 6. | C51: Net investment income and other gain / (loss)
B52: 7. | C52: Other Federal income taxes (exclude taxes on Line 3.1a and 3.1b)
B54: Cell Keys:
C55: Blank cells require input from Health plan or Health insurer
C56: Grey cells require no data input
C57: Pink cells require no data input - locked down
C58: Blue cells: computed cell (formula cell)

Sheet Pt 2 Premium and Claims
B1: Department of Managed Health Care/Department of Insurance
B2: Medical Loss Ratio Reporting Form: Dental Coverage
B3: Part 2 - Premium and Claims
B5: Health Plan ID
D6: ='Cover Page'!C7 -> 0
B7: Legal Name
D8: ='Cover Page'!C8 -> Dearborn Life Insurance Company
B9: dBA | E9: Part 2
D10: ='Cover Page'!C9 -> Health Insurer
B11: MLR Reporting Year
D12: ='Cover Page'!C6 -> 2023
G15: Health Insurance Coverage | M15: Health Insurance Coverage
G16: DHMO Products | M16: DPPO & Indemnity Products
E17: Individual | H17: Small Group | I17: Large Group | K17: Individual | M17: Small Group | O17: Large Group
E18: Total as of | F18: Total as of | G18: Total as of | H18: Total as of | I18: Total as of | J18: Total as of | K18: Total as of | L18: Total as of | M18: Total as of | N18: Total as of | O18: Total as of | P18: Total as of
D19: Part 2 NOTE: REFER TO MLR INSTRUCTIONS FOR IMPORTANT | E19: ="12/31/"&""&'Cover Page'!C$6 -> 12/31/2023 | F19: =DATE(YEAR(E19)+0,MONTH(E19)+3,DAY(E19)+0) -> 2024-03-31 | G19: ="12/31/"&""&'Cover Page'!C$6 -> 12/31/2023 | H19: =DATE(YEAR(G19)+0,MONTH(G19)+3,DAY(G19)+0) -> 2024-03-31 | I19: ="12/31/"&""&'Cover Page'!C$6 -> 12/31/2023 | J19: =DATE(YEAR(I19)+0,MONTH(I19)+3,DAY(I19)+0) -> 2024-03-31 | K19: ="12/31/"&""&'Cover Page'!C$6 -> 12/31/2023 | L19: =DATE(YEAR(K19)+0,MONTH(K19)+3,DAY(K19)+0) -> 2024-03-31 | M19: ="12/31/"&""&'Cover Page'!C$6 -> 12/31/2023 | N19: =DATE(YEAR(M19)+0,MONTH(M19)+3,DAY(M19)+0) -> 2024-03-31 | O19: ="12/31/"&""&'Cover Page'!C$6 -> 12/31/2023 | P19: =DATE(YEAR(O19)+0,MONTH(O19)+3,DAY(O19)+0) -> 2024-03-31
D20: INFORMATION ABOUT COMPLETING EACH COLUMN AND ROW. | E20: 1 | F20: 2 | G20: 3 | H20: 4 | I20: 5 | J20: 6 | K20: 7 | L20: 8 | M20: 9 | N20: 10 | O20: 11 | P20: 12
B21: 1. | C21: Premium:
C22: 1.1 | D22: Direct premium written | M22: 70760.77 | N22: 70906.99
C23: 1.2 | D23: Unearned premium prior year
C24: 1.3 | D24: Unearned premium MLR Reporting year
C25: 1.4 | D25: Premium balances written off
B27: 2. | C27: Claims:
C28: 2.1 | D28: Claims Paid
D29: 2.1a Claims paid during the MLR reporting year regardless of incurred date | M29: 51211.14
D30: 2.1b Claims incurred only during the MLR reporting year, paid through 3/31 of the following year | N30: 46677.06
C31: 2.2 | D31: Direct claim liability
D32: 2.2a Liability as of 12/31 of MLR reporting year for all claims regardless of incurred date
D33: 2.2b Liability for claims incurred only during the MLR reporting year, calculated as of 3/31 of the following year
C34: 2.3 | D34: Direct claim liability prior year
C35: 2.4 | D35: Direct claim reserves
D36: 2.4a Reserves as of 12/31 of MLR reporting year for all claims regardless of incurred date | M36: 3136.2473
D37: 2.4b Reserves for claims incurred only during the MLR reporting year, calculated as of 3/31 of the following year | N37: 378.2933
C38: 2.5 | D38: Direct claim reserves prior year
C39: 2.6 | D39: Experience rating refunds (rate credits) paid
D40: 2.6a Experience rating refunds, with all incurred dates, paid in the MLR reporting year
D41: 2.6b Experience rating refunds associated with premium earned only in the reporting year and paid through 3/31 of the following year
C42: 2.7 | D42: Reserve for experience rating refunds (rate credits)
D43: 2.7a Reserved in MLR reporting year regardless of incurred date
D44: 2.7b Reserves specific to the MLR reporting year through 3/31 of the following year
C45: 2.8 | D45: Reserve for experience rating refunds (rate credits) prior year
C46: 2.9 | D46: Incurred dental incentive pool and bonuses
D47: 2.9a Paid dental incentive pools and bonuses MLR Reporting year
D48: 2.9b Accrued dental incentive pools and bonuses MLR Reporting year
D49: 2.9c Accrued dental incentive pools and bonuses prior year
C50: 2.10 | D50: Contingent benefit and lawsuit reserves
C51: 2.11 | D51: Total incurred claims | E51: =E29+E32-E34+E36-E38+E40+E43-E45+E47+E48-E49+E50 -> 0 | F51: =F30+F33+F37+F41+F44+F47+F48+F50 -> 0 | G51: =G29+G32-G34+G36-G38+G40+G43-G45+G47+G48-G49+G50 -> 0 | H51: =H30+H33+H37+H41+H44+H47+H48+H50 -> 0 | I51: =I29+I32-I34+I36-I38+I40+I43-I45+I47+I48-I49+I50 -> 0 | J51: =J30+J33+J37+J41+J44+J47+J48+J50 -> 0 | K51: =K29+K32-K34+K36-K38+K40+K43-K45+K47+K48-K49+K50 -> 0 | L51: =L30+L33+L37+L41+L44+L47+L48+L50 -> 0 | M51: =M29+M32-M34+M36-M38+M40+M43-M45+M47+M48-M49+M50 -> 54347.3873 | N51: =N30+N33+N37+N41+N44+N47+N48+N50 -> 47055.3533 | O51: =O29+O32-O34+O36-O38+O40+O43-O45+O47+O48-O49+O50 -> 0 | P51: =P30+P33+P37+P41+P44+P47+P48+P50 -> 0
C54: Cell Keys:
D55: Blank cells require input from Health plan or Health insurer
D56: Grey cells require no data input
D57: Pink cells require no data input - locked down
D58: Blue cells: computed cell (formula cell)

Sheet Pt 3 Expense Allocation
B1: Department of Managed Health Care/Department of Insurance
B2: Medical Loss Ratio Reporting Form: Dental Coverage
B3: Part 3 - Expense Allocation
B5: Health Plan ID
B6: ='Cover Page'!C7 -> 0 | D6: Part 3
B7: Legal Name
B8: ='Cover Page'!C8 -> Dearborn Life Insurance Company
B9: dBA
B10: ='Cover Page'!C9 -> Health Insurer
B11: MLR Reporting Year
B12: ='Cover Page'!C6 -> 2023
B15: Description of Expense Element (by Type) | C15: NEW | D15: Detailed Description of Expense Allocation Methods
B16: 1 | C16: 2 | D16: 3
B17: 1. Incurred Claims
D18: Actual - no allocation
B24: 2. Federal and State Taxes and Licensing or Regulatory Fees
B25: 2.a Federal taxes and assessments
D26: Corporate tax rate 21%
B32: 2.b State insurance, premium and other taxes
D33: Actual premium tax allocated based on direct dental premium collected
B39: 2.c Community benefit expenditures
D40: None
B46: 2.d Regulatory authority licenses and fees
D47: None
B53: 3. Non-Claims costs
B54: 3.a Direct sales salaries and benefits
D55: None
B61: 3.b Agents and brokers fees and commissions
D62: Actual expense allocated based on direct dental premium collected
B68: 3.c Other taxes
D69: no allocation
B75: 3.d Other general and administrative expenses
D76: Actual expense allocated based on direct dental premium collected
B83: Cell Keys:
B84: Blank cells require input from Health plan or Health insurer
B85: Grey cells require no data input
B86: Pink cells require no data input - locked down
B87: Blue cells: computed cell (formula cell)

Sheet Pt 4 MLR Calculation
B1: Department of Managed Health Care/Department of Insurance
B2: Medical Loss Ratio Reporting Form: Dental Coverage
B3: Part 4 - MLR Calculation
B5: Health Plan ID
D6: ='Cover Page'!C7 -> 0 | F6: Part 4
B7: Legal Name
D8: ='Cover Page'!C8 -> Dearborn Life Insurance Company
B9: dBA
D10: ='Cover Page'!C9 -> Health Insurer
B11: MLR Reporting Year
D12: ='Cover Page'!C6 -> 2023
J15: Health Insurance Coverage | V15: Health Insurance Coverage
J16: DHMO Products | V16: DPPO & Indemnity Products
F17: Individual | J17: Small Group | N17: Large Group | R17: Individual | V17: Small Group | Z17: Large Group
D18: Part 4 NOTE: REFER TO MLR INSTRUCTIONS FOR IMPORTANT | E18: PY2 | F18: PY1 | G18: CY | H18: Total | I18: PY2 | J18: PY1 | K18: CY | L18: Total | M18: PY2 | N18: PY1 | O18: CY | P18: Total | Q18: PY2 | R18: PY1 | S18: CY | T18: Total | U18: PY2 | V18: PY1 | W18: CY | X18: Total | Y18: PY2 | Z18: PY1 | AA18: CY | AB18: Total
D19: INFORMATION ABOUT COMPLETING EACH COLUMN AND ROW. | E19: 1 | F19: 2 | G19: 3 | H19: 4 | I19: 5 | J19: 6 | K19: 7 | L19: 8 | M19: 9 | N19: 10 | O19: 11 | P19: 12 | Q19: 13 | R19: 14 | S19: 15 | T19: 16 | U19: 17 | V19: 18 | W19: 19 | X19: 20 | Y19: 21 | Z19: 22 | AA19: 23 | AB19: 24
B20: 1. | C20: Medical Loss Ratio Numerator
C21: 1.1 | D21: Adjusted incurred claims as reported on MLR Form for prior year(s) | U21: 147125.656 | V21: 123125.44
C22: 1.2 | D22: Adjusted incurred claims as of 3/31 of the year following the MLR reporting year (Part 1 Line 2.1) | G22: ='Pt 1 Summary of Data'!F24 -> 0 | H22: =SUM(E22:G22) -> 0 | K22: ='Pt 1 Summary of Data'!H24 -> 0 | L22: =SUM(I22:K22) -> 0 | O22: ='Pt 1 Summary of Data'!J24 -> 0 | P22: =SUM(M22:O22) -> 0 | S22: ='Pt 1 Summary of Data'!L24 -> 0 | T22: =SUM(Q22:S22) -> 0 | U22: 147125.656 | V22: 123125.44 | W22: ='Pt 1 Summary of Data'!N24 -> 47055.3533 | X22: =SUM(U22:W22) -> 317306.4493 | AA22: ='Pt 1 Summary of Data'!P24 -> 0 | AB22: =SUM(Y22:AA22) -> 0
C23: 1.3 | D23: MLR numerator (Line 1.2) | E23: =SUM(E$22) -> 0 | F23: =SUM(F$22) -> 0 | G23: =SUM(G$22:G$22) -> 0 | H23: =SUM(E23:G23) -> 0 | I23: =SUM(I$22:I$22) -> 0 | J23: =SUM(J$22:J$22) -> 0 | K23: =SUM(K$22:K$22) -> 0 | L23: =SUM(I23:K23) -> 0 | M23: =SUM(M$22:M$22) -> 0 | N23: =SUM(N$22:N$22) -> 0 | O23: =SUM(O$22:O$22) -> 0 | P23: =SUM(M23:O23) -> 0 | Q23: =SUM(Q$22:Q$22) -> 0 | R23: =SUM(R$22:R$22) -> 0 | S23: =SUM(S$22:S$22) -> 0 | T23: =SUM(Q23:S23) -> 0 | U23: =SUM(U$22:U$22) -> 147125.656 | V23: =SUM(V$22:V$22) -> 123125.44 | W23: =SUM(W$22:W$22) -> 47055.3533 | X23: =SUM(U23:W23) -> 317306.4493 | Y23: =SUM(Y$22:Y$22) -> 0 | Z23: =SUM(Z$22:Z$22) -> 0 | AA23: =SUM(AA$22:AA$22) -> 0 | AB23: =SUM(Y23:AA23) -> 0
B25: 2. | C25: Medical Loss Ratio Denominator
C26: 2.1 | D26: Premium earned (Part 1 Line 1.1) | G26: ='Pt 1 Summary of Data'!F21 -> 0 | H26: =SUM(E26:G26) -> 0 | K26: ='Pt 1 Summary of Data'!H21 -> 0 | L26: =SUM(I26:K26) -> 0 | O26: ='Pt 1 Summary of Data'!J21 -> 0 | P26: =SUM(M26:O26) -> 0 | S26: ='Pt 1 Summary of Data'!L21 -> 0 | T26: =SUM(Q26:S26) -> 0 | U26: 296474.9092 | V26: 201390.462 | W26: ='Pt 1 Summary of Data'!N21 -> 70906.99 | X26: =SUM(U26:W26) -> 568772.3612 | AA26: ='Pt 1 Summary of Data'!P21 -> 0 | AB26: =SUM(Y26:AA26) -> 0
C27: 2.2 | D27: Federal and State taxes and licensing or regulatory fees ( Part 1 Line 3.4) | G27: ='Pt 1 Summary of Data'!F35 -> 0 | H27: =SUM(E27:G27) -> 0 | K27: ='Pt 1 Summary of Data'!H35 -> 0 | L27: =SUM(I27:K27) -> 0 | O27: ='Pt 1 Summary of Data'!J35 -> 0 | P27: =SUM(M27:O27) -> 0 | S27: ='Pt 1 Summary of Data'!L35 -> 0 | T27: =SUM(Q27:S27) -> 0 | V27: 10502 | W27: ='Pt 1 Summary of Data'!N35 -> 1659 | X27: =SUM(U27:W27) -> 12161 | AA27: ='Pt 1 Summary of Data'!P35 -> 0 | AB27: =SUM(Y27:AA27) -> 0
C28: 2.3 | D28: MLR Denominator (Line 2.1 - Line 2.2) | E28: =E$26-E$27 -> 0 | F28: 0 | G28: 0 | H28: =H$26-H$27 -> 0 | I28: =I$26-I$27 -> 0 | J28: =J$26-J$27 -> 0 | K28: 0 | L28: =L$26-L$27 -> 0 | M28: 0 | N28: 0 | O28: 0 | P28: =P$26-P$27 -> 0 | Q28: 0 | R28: 0 | S28: 0 | T28: =T$26-T$27 -> 0 | U28: 296474.9092 | V28: 190888.462 | W28: 69247.99 | X28: =X$26-X$27 -> 556611.3612 | Y28: 0 | Z28: 0 | AA28: 0 | AB28: =AB$26-AB$27 -> 0
B30: 3. | C30: 3.1 | D30: Life-years (Part 1 Line 5.3) | G30: ='Pt 1 Summary of Data'!F49 -> 0 | H30: =SUM(E30:G30) -> 0 | K30: ='Pt 1 Summary of Data'!H49 -> 0 | L30: =SUM(I30:K30) -> 0 | O30: ='Pt 1 Summary of Data'!J49 -> 0 | P30: =SUM(M30:O30) -> 0 | S30: ='Pt 1 Summary of Data'!L49 -> 0 | T30: =SUM(Q30:S30) -> 0 | U30: 458.5833333 | V30: 325 | W30: ='Pt 1 Summary of Data'!N49 -> 118.6666667 | X30: =SUM(U30:W30) -> 902.25 | AA30: ='Pt 1 Summary of Data'!P49 -> 0 | AB30: =SUM(Y30:AA30) -> 0
B32: 4. | D32: MLR Calculation (for Health plans or health insurers with at least 1,000 life years in the Total column of Line 3.1)
C33: 4.1 | D33: MLR | H33: =IF(H30<1000,"Not Required to Calculate",H23/H28) -> Not Required to Calculate | L33: =IF(L30<1000,"Not Required to Calculate",L23/L28) -> Not Required to Calculate | P33: =IF(P30<1000,"Not Required to Calculate",P23/P28) -> Not Required to Calculate | T33: =IF(T30<1000,"Not Required to Calculate",T23/T28) -> Not Required to Calculate | X33: =IF(X30<1000,"Not Required to Calculate",X23/X28) -> Not Required to Calculate | AB33: =IF(AB30<1000,"Not Required to Calculate",AB23/AB28) -> Not Required to Calculate
C37: Cell Keys:
D38: Blank cells require input from Health plan or Health insurer
D39: Grey cells require no data input
D40: Pink cells require no data input - locked down
D41: Blue cells: computed cell (formula cell)

Sheet Pt 5 Additional Responses
B1: Department of Managed Health Care/Department of Insurance
B2: Medical Loss Ratio Reporting Form: Dental Coverage
B3: Part 5 - Additional Responses
B5: Health Plan ID
B6: ='Cover Page'!C7 -> 0
B7: Legal Name | C7: Part 5
B8: ='Cover Page'!C8 -> Dearborn Life Insurance Company
B9: dBA
B10: ='Cover Page'!C9 -> Health Insurer
B11: MLR Reporting Year
B12: ='Cover Page'!C6 -> 2023
C16: Tax Rate
B17: 1. If a health plan or health insurer uses the hightest premium tax rate in the State, the health plan or health insurer must report applicabe highest State health premium tax rate.
B18: 2. If the health plan or health insurer included deferred experience for prior year and excluded deferred experience for current year, provide the total direct written premium and total incurred claims for the deferred experience by market.
B19: Deferred experience for prior year
B20: Deferred experience for current year
B32: 3. If the health plan or health insurer novated any business in the MLR reporting year effective during the reporting year provide the name of the entity to whom the business was sold or transferred and the date of the sale or transfer.
B33: Name of Entity to whom business was sold or transferred | C33: Effective date of sale or transfer
B45: Cell Keys:
B46: Blank cells require input from Health plan or Health insurer
B47: Grey cells require no data input
B48: Pink cells require no data input - locked down
B49: Blue cells: computed cell (formula cell)

Sheet Attestation
B1: Department of Managed Health Care
B2: Medical Loss Ratio Reporting Form: Dental Coverage
B3: Attestation
B5: Health Plan ID
B6: ='Cover Page'!C7 -> 0
B7: Legal Name
B8: ='Cover Page'!C8 -> Dearborn Life Insurance Company | D8: Attestation
B9: dBA
B10: ='Cover Page'!C9 -> Health Insurer
B11: MLR Reporting Year
B12: ='Cover Page'!C6 -> 2023
B17: Attestation Statement
B18: The officers of this reporting Health plan being duly sworn, each attest that he/she is the described officer of the reporting Health plan, and that this MLR Reporting Form, the Company/Health plan Associations, and any supplemental submission that the Health plan includes are full and true statements of all the elements included therein for the MLR reporting year stated above, and that the MLR Reporting Form has been completed in accordance with the Department of Managed Health Care’s guidance and reporting instructions, according to the best of his/her information, knowledge and belief. Furthermore, the scope of this attestation by the described officer includes any related electronic filings and postings for the MLR reporting year stated above and which are required by Department of Managed Health Care.
B23: Chief Executive Officer/President
B25: Mike W. Witwer
B27: Chief Financial Officer
B29: Claire C. Burke

Sheet Dec 2023
A1: DEARBORN LIFE INSURANCE COMPANY | J1: DO NOT FILE THIS PAGE
A2: DECEMBER 2023 YTD
A3: INCOME STATEMENT BY LINE OF BUSINESS
A4: $'(000)'s
D6: Regional Accounts Group Insurance
D7: Life | E7: ADD | F7: STD | G7: LTD | H7: Dental | I7: Critical Illness | J7: Accident | K7: Hosp Indem | L7: Vision | M7: STD ASO | N7: LTD ASO | O7: DENTAL ASO | P7: TOTAL
A9: Revenues
A10: Premiums
B11: Insurance premiums | D11: 171391.3568 | E11: 18375.75535 | F11: 89828.35039 | G11: 82445.84943 | H11: 1075.89412 | I11: 7183.4589 | J11: 7202.56588 | K11: 0 | L11: 44499.55232 | M11: 0 | N11: 0 | O11: 0 | P11: 422002.7832
B12: ASO claims and fees | D12: 500.18121 | E12: 0 | F12: 0 | G12: 0 | H12: 0 | I12: 0 | J12: 0 | K12: 0 | L12: 0 | M12: 3819.54872 | N12: 0 | O12: 0 | P12: 4319.72993
B13: Annuity premiums | D13: 0 | E13: 0 | F13: 0 | G13: 0 | H13: 0 | I13: 0 | J13: 0 | K13: 0 | L13: 0 | M13: 0 | N13: 0 | O13: 0 | P13: 0
B14: Total premiums | D14: 171891.538 | E14: 18375.75535 | F14: 89828.35039 | G14: 82445.84943 | H14: 1075.89412 | I14: 7183.4589 | J14: 7202.56588 | K14: 0 | L14: 44499.55232 | M14: 3819.54872 | N14: 0 | O14: 0 | P14: 426322.5131
A16: Net investment income | D16: 3566 | E16: 0 | F16: 548 | G16: 10631 | H16: 3 | I16: 0 | J16: 0 | K16: 0 | L16: 0 | M16: 0 | N16: 0 | O16: 0 | P16: 14748
A17: Realized capital gains (losses) on bond disposals | D17: 0 | E17: 0 | F17: 0 | G17: 0 | H17: 0 | I17: 0 | J17: 0 | K17: 0 | L17: 0 | M17: 0 | N17: 0 | O17: 0 | P17: 0
A18: Realized capital gains (losses) on derivatives | D18: 0 | E18: 0 | F18: 0 | G18: 0 | H18: 0 | I18: 0 | J18: 0 | K18: 0 | L18: 0 | M18: 0 | N18: 0 | O18: 0 | P18: 0
A19: Realized capital losses - impairments | D19: -455 | E19: 0 | F19: -52 | G19: -1012 | I19: 0 | J19: 0 | K19: 0 | L19: 0 | M19: 0 | N19: 0 | O19: 0 | P19: -1519
A21: Other income
B22: Dental TPA fees
B23: Dental network leasing fees
B24: Other revenues | D24: 84.71406 | E24: 0 | F24: 1117.29736 | G24: 2.26469 | H24: 0 | I24: 0 | J24: 0 | K24: 0 | L24: 0 | M24: 0 | N24: 0 | O24: 0 | P24: 1204.27611
B25: Total other income | D25: 84.71406 | E25: 0 | F25: 1117.29736 | G25: 2.26469 | H25: 0 | I25: 0 | J25: 0 | K25: 0 | L25: 0 | M25: 0 | N25: 0 | O25: 0 | P25: 1204.27611
A27: Gross Revenues | D27: 175087.2521 | E27: 18375.75535 | F27: 91441.64775 | G27: 92067.11412 | H27: 1078.89412 | I27: 7183.4589 | J27: 7202.56588 | K27: 0 | L27: 44499.55232 | M27: 3819.54872 | N27: 0 | O27: 0 | P27: 440755.7892
A29: Less: ASO claims | D29: 0 | E29: 0 | F29: 0 | G29: 0 | H29: 0 | I29: 0 | J29: 0 | K29: 0 | L29: 0 | M29: -2825.72565 | N29: 0 | O29: 0 | P29: -2825.72565
A31: Net Revenues | D31: 175087.2521 | E31: 18375.75535 | F31: 91441.64775 | G31: 92067.11412 | H31: 1078.89412 | I31: 7183.4589 | J31: 7202.56588 | K31: 0 | L31: 44499.55232 | M31: 993.82307 | N31: 0 | O31: 0 | P31: 437930.0636
A33: Incurred Benefits
B34: Insurance claims and reserves | D34: 113011.8634 | E34: 5954.93964 | F34: 50415.92823 | G34: 54495.61233 | H34: 682.67476 | I34: 1604.60462 | J34: 778.85229 | K34: 0 | L34: 22195.0585 | M34: 0 | N34: 0 | O34: 0 | P34: 249139.5338
B35: Annuity claims and reserves | D35: 0 | E35: 0 | F35: 0 | G35: 0 | H35: 0 | I35: 0 | M35: 0 | N35: 0 | O35: 0 | P35: 0
A36: Total Incurred Benefits | D36: 113011.8634 | E36: 5954.93964 | F36: 50415.92823 | G36: 54495.61233 | H36: 682.67476 | I36: 1604.60462 | J36: 778.85229 | K36: 0 | L36: 22195.0585 | M36: 0 | N36: 0 | O36: 0 | P36: 249139.5338 | R36: CA DENTAL | S36: CA DENTAL | T36: CA DENTAL
R37: 2023-12-31 | S37: 03/312023 | T37: 2024-03-31
A38: Operating Expenses
B39: Commission expense | D39: 23910.1737 | E39: 2417.4492 | F39: 13971.64261 | G39: 12879.70805 | H39: 110.20771 | I39: 1409.20792 | J39: 1155.76245 | K39: 0 | L39: 5528.30533 | M39: 53.49445 | N39: 0 | O39: 0 | P39: 61435.95142 | Q39: =+I39/P39 -> 0.02293783831 | R39: =+H39*1000 -> 110207.71 | S39: ='March 2023'!H39*1000 -> 30904.55 | T39: ='March 2024'!H39*1000 -> 23792.2 | U39: =+R39-S39+T39 -> 103095.36
B40: General and administrative expense | D40: 21202.35463 | E40: 2667.034066 | F40: 19612.10799 | G40: 13817.05374 | H40: 457.924 | I40: 2037.585066 | J40: 1907.774592 | L40: 6215.0513 | M40: 190.977436 | N40: 0 | O40: 0 | P40: 68107.86282 | Q40: =+I40/P40 -> 0.02991703134 | R40: =+H40*1000 -> 457924 | S40: ='March 2023'!H40*1000 -> 85896 | T40: ='March 2024'!H40*1000 -> 69263.31 | U40: 441291.31
B41: ACA tax | D41: 0 | F41: 0 | G41: 0 | I41: 0 | J41: 0 | K41: 0 | M41: 0 | N41: 0 | O41: 0 | P41: 0
B42: Premium tax | D42: 2169.873461 | E42: 234.3017675 | F42: 1134.664746 | G42: 1147.290419 | H42: 13.72934066 | I42: 90.57466016 | J42: 87.98375148 | K42: 0 | L42: 553.4025527 | M42: 0 | N42: 0 | O42: 0 | P42: 5431.820699 | Q42: DENTAL PREM | R42: 59805 | S42: 10069 | T42: 20842 | U42: =+R42-S42+T42 -> 70578
A43: Total Operating Expenses | D43: 47282.40179 | E43: 5318.785034 | F43: 34718.41535 | G43: 27844.05221 | H43: 581.8610507 | I43: 3537.367646 | J43: 3151.520793 | L43: 12296.75918 | M43: 244.471886 | N43: 0 | O43: 0 | P43: 134975.6349 | Q43: CA PREM TX RATE .0235 | R43: =+R42*0.0235 -> 1405.4175 | U43: =+U42*0.0235 -> 1658.583
Q44: DENTAL PREMIUM - ALL STATES | R44: 1095977 | S44: 314116 | T44: 211594 | U44: =+R44-S44+T44 -> 993455
A45: Total Incurred Benefits and Operating Expenses | D45: 160294.2652 | E45: 11273.72467 | F45: 85134.34358 | G45: 82339.66454 | H45: 1264.535811 | I45: 5141.972266 | J45: 3930.373083 | L45: 34491.81768 | M45: 244.471886 | N45: 0 | O45: 0 | P45: 384115.1687 | R45: =+R42/R44 -> 0.05456775097 | U45: =+U42/U44 -> 0.07104297628
Q46: Agents and brokers fees and commissions | R46: =+R45*R39 -> 6013.786874 | U46: =+U45*U39 -> 7324.201215
A47: Pre-tax Income (Loss) Before TB & C&S Allocation | D47: 14792.98689 | E47: 7102.030676 | F47: 6307.304172 | G47: 9727.449581 | H47: -185.6416907 | I47: 2041.486634 | J47: 3272.192797 | L47: 10007.73464 | M47: 749.351184 | N47: 0 | O47: 0 | P47: 53814.89489 | Q47: General and administrative expense | R47: =+R45*R40 -> 24987.88279 | U47: =+U45*U40 -> 31350.64807
A48: C&S Earnings Allocation | D48: 4995.603774 | E48: 76.03408154 | F48: 284.221109 | G48: 1783.028618 | H48: 13.3247682 | I48: 38.21168903 | J48: 46.8848679 | K48: 0 | L48: 248.0928432 | M48: 0 | N48: 0 | O48: 0 | P48: 7485.401751 | Q48: Premium tax | R48: =+R43 -> 1405.4175 | U48: =+U43 -> 1658.583
A49: Pre-tax Income (Loss) Before Total Blue Costs
Q50: EARNED PREMIUM ( PER REPORT) | R50: 70761 | U50: 70907
A51: Pre-tax Income (Loss) | D51: 19788.59067 | E51: 7178.064758 | F51: 6591.525281 | G51: 11510.4782 | H51: -172.3169225 | I51: 2079.698323 | J51: 3319.077665 | L51: 10255.82748 | M51: 749.351184 | N51: 0 | O51: 0 | P51: 61300.29664 | Q51: INCURRED CLAIMS ( PER REPORT) | R51: 54347 | U51: 47055
Q52: NET INCOME | R52: =+R50-R51-R46-R47-R48 -> -15993.08717 | U52: =+U50-U51-U46-U47-U48 -> -16481.43228
A53: Insurance loss ratio (insurance benefit expenses / insurance premiums) | D53: 0.6593790113 | E53: 0.3240650263 | F53: 0.5612474014 | G53: 0.6609867289 | H53: 0.6345185342 | I53: 0.2233749288 | J53: 0.1081353927 | L53: 0.4987703773 | P53: 0.5903741484 | Q53: FIT @21% | R53: =+R52*0.21 -> -3358.548305 | U53: =+U52*0.21 -> -3461.10078
A55: G&A Expense ratio (G&A expenses / insurance premiums incl. ASO) | D55: 0.1233472856 | E55: 0.1451387448 | F55: 0.2183287114 | G55: 0.16758944 | H55: 0.4256218075 | I55: 0.2836495753 | J55: 0.2648742994 | L55: 0.1396654792 | M55: 0.05 | P55: 0.1597566648
A57: Pre-tax Margin (Pre-tax income (loss) / total premiums) | D57: 0.1151225412 | E57: 0.3906269223 | F57: 0.07337911976 | G57: 0.1396125855 | H57: -0.1601615989 | I57: 0.2895121071 | J57: 0.460818786 | L57: 0.2304703519 | M57: 0.1961884084 | P57: 0.1437885515

Sheet March 2023
A1: DEARBORN LIFE INSURANCE COMPANY | J1: DO NOT FILE THIS PAGE
A2: MARCH 2023 YTD
A3: INCOME STATEMENT BY LINE OF BUSINESS
A4: $'(000)'s
D6: Regional Accounts Group Insurance
D7: Life | E7: ADD | F7: STD | G7: LTD | H7: Dental | I7: Critical Illness | J7: Accident | K7: Vision | L7: STD ASO | M7: LTD ASO | N7: DENTAL ASO | O7: TOTAL
A9: Revenues
A10: Premiums
B11: Insurance premiums | D11: 42363.38161 | E11: 4542.29909 | F11: 22247.84762 | G11: 20330.59862 | H11: 277.6313 | I11: 1715.25288 | J11: 1713.73242 | K11: 10637.20091 | L11: 0 | M11: 0 | N11: 0 | O11: 103827.9444
B12: ASO claims and fees | D12: 137.53677 | E12: 0 | F12: 0 | G12: 0 | H12: 0 | I12: 0 | J12: 0 | K12: 0 | L12: 921.13049 | M12: 0 | N12: 0 | O12: 1058.66726
B13: Annuity premiums | D13: 0 | E13: 0 | F13: 0 | G13: 0 | H13: 0 | I13: 0 | J13: 0 | K13: 0 | L13: 0 | M13: 0 | N13: 0 | O13: 0
B14: Total premiums | D14: 42500.91838 | E14: 4542.29909 | F14: 22247.84762 | G14: 20330.59862 | H14: 277.6313 | I14: 1715.25288 | J14: 1713.73242 | K14: 10637.20091 | L14: 921.13049 | M14: 0 | N14: 0 | O14: 104886.6117
A16: Net investment income | D16: 933 | E16: 0 | F16: 132 | G16: 2580 | H16: 1 | I16: 0 | J16: 0 | K16: 0 | L16: 0 | M16: 0 | N16: 0 | O16: 3646
A17: Realized capital gains (losses) on bond disposals | D17: 0 | E17: 0 | F17: 0 | G17: 0 | H17: 0 | I17: 0 | J17: 0 | K17: 0 | L17: 0 | M17: 0 | N17: 0 | O17: 0
A18: Realized capital gains (losses) on derivatives | D18: 0 | E18: 0 | F18: 0 | G18: 0 | H18: 0 | I18: 0 | J18: 0 | K18: 0 | L18: 0 | M18: 0 | N18: 0 | O18: 0
A19: Realized capital losses - impairments | D19: 0 | E19: 0 | F19: 0 | G19: 0 | I19: 0 | J19: 0 | K19: 0 | L19: 0 | M19: 0 | N19: 0 | O19: 0
A21: Other income
B22: Dental TPA fees
B23: Dental network leasing fees
B24: Other revenues | D24: 86.32886 | E24: 0 | F24: 269.29556 | G24: 0.3199 | H24: 0 | I24: 0 | J24: 0 | K24: 0 | L24: 0 | M24: 0 | N24: 0 | O24: 355.94432
B25: Total other income | D25: 86.32886 | E25: 0 | F25: 269.29556 | G25: 0.3199 | H25: 0 | I25: 0 | J25: 0 | K25: 0 | L25: 0 | M25: 0 | N25: 0 | O25: 355.94432
A27: Gross Revenues | D27: 43520.24724 | E27: 4542.29909 | F27: 22649.14318 | G27: 22910.91852 | H27: 278.6313 | I27: 1715.25288 | J27: 1713.73242 | K27: 10637.20091 | L27: 921.13049 | M27: 0 | N27: 0 | O27: 108888.556
A29: Less: ASO claims | D29: 0 | E29: 0 | F29: 0 | G29: 0 | H29: 0 | I29: 0 | J29: 0 | K29: 0 | L29: -681.00094 | M29: 0 | N29: 0 | O29: -681.00094
A31: Net Revenues | D31: 43520.24724 | E31: 4542.29909 | F31: 22649.14318 | G31: 22910.91852 | H31: 278.6313 | I31: 1715.25288 | J31: 1713.73242 | K31: 10637.20091 | L31: 240.12955 | M31: 0 | N31: 0 | O31: 108207.5551
A33: Incurred Benefits
B34: Insurance claims and reserves | D34: 35174.81354 | E34: 1677.57839 | F34: 12530.95551 | G34: 11429.80255 | H34: 203.18635 | I34: 223.89867 | J34: 147.96634 | K34: 5620.98047 | L34: 0 | M34: 0 | N34: 0 | O34: 67009.18182
B35: Annuity claims and reserves | D35: 0 | E35: 0 | F35: 0 | G35: 0 | H35: 0 | I35: 0 | L35: 0 | M35: 0 | N35: 0 | O35: 0
A36: Total Incurred Benefits | D36: 35174.81354 | E36: 1677.57839 | F36: 12530.95551 | G36: 11429.80255 | H36: 203.18635 | I36: 223.89867 | J36: 147.96634 | K36: 5620.98047 | L36: 0 | M36: 0 | N36: 0 | O36: 67009.18182
A38: Operating Expenses
B39: Commission expense | D39: 6357.16619 | E39: 612.09202 | F39: 3522.14647 | G39: 3274.10093 | H39: 30.90455 | I39: 341.8604 | J39: 278.67726 | K39: 1338.4498 | L39: 11.1162 | M39: 0 | N39: 0 | O39: 15766.51382
B40: General and administrative expense | D40: 5731.563578 | E40: 741.4009993 | F40: 5298.130093 | G40: 3352.881716 | H40: 85.896 | I40: 542.9686796 | J40: 508.0237123 | K40: 1560.109864 | L40: 91.446788 | M40: 0 | N40: 0 | O40: 17912.42143
B41: ACA tax | D41: 0 | F41: 0 | G41: 0 | I41: 0 | J41: 0 | L41: 0 | M41: 0 | N41: 0 | O41: 0
B42: Premium tax | D42: 524.8377644 | E42: 58.10652549 | F42: 288.3278139 | G42: 294.7665476 | H42: 3.917533081 | I42: 22.55514836 | J42: 20.21835802 | K42: 132.3939869 | L42: 0 | M42: 0 | N42: 0 | O42: 1345.123678
A43: Total Operating Expenses | D43: 12613.56753 | E43: 1411.599545 | F43: 9108.604377 | G43: 6921.749194 | H43: 120.7180831 | I43: 907.3842279 | J43: 806.9193303 | K43: 3030.953651 | L43: 102.562988 | M43: 0 | N43: 0 | O43: 35024.05893
A45: Total Incurred Benefits and Operating Expenses | D45: 47788.38107 | E45: 3089.177935 | F45: 21639.55989 | G45: 18351.55174 | H45: 323.9044331 | I45: 1131.282898 | J45: 954.8856703 | K45: 8651.934121 | L45: 102.562988 | M45: 0 | N45: 0 | O45: 102033.2407
A47: Pre-tax Income (Loss) Before TB & C&S Allocation | D47: -4268.133833 | E47: 1453.121155 | F47: 1009.583293 | G47: 4559.366776 | H47: -45.27313308 | I47: 583.9699821 | J47: 758.8467497 | K47: 1985.266789 | L47: 137.566562 | M47: 0 | N47: 0 | O47: 6174.314341
A48: C&S Earnings Allocation | D48: 943.8167094 | E48: 15.01825114 | F48: 55.66073941 | G48: 349.50629 | H48: 2.6016183 | I48: 7.423864281 | J48: 9.125171343 | K48: 48.06239185 | L48: 0 | M48: 0 | N48: 0 | O48: 1431.215036
A49: Pre-tax Income (Loss) Before Total Blue Costs
A51: Pre-tax Income (Loss) | D51: -3324.317123 | E51: 1468.139406 | F51: 1065.244032 | G51: 4908.873066 | H51: -42.67151478 | I51: 591.3938463 | J51: 767.971921 | K51: 2033.32918 | L51: 137.566562 | M51: 0 | N51: 0 | O51: 7605.529376
A53: Insurance loss ratio (insurance benefit expenses / insurance premiums) | D53: 0.8303117505 | E53: 0.3693236303 | F53: 0.5632434977 | G53: 0.5621970491 | H53: 0.7318567827 | I53: 0.1305339129 | J53: 0.08634156551 | K53: 0.5284266526 | O53: 0.6453867711
A55: G&A Expense ratio (G&A expenses / insurance premiums incl. ASO) | D55: 0.1348574054 | E55: 0.1632215283 | F55: 0.2381412433 | G55: 0.1649180026 | H55: 0.3093887469 | I55: 0.3165531368 | J55: 0.2964428439 | K55: 0.1466654506 | L55: 0.09927669206 | O55: 0.170778912
A57: Pre-tax Margin (Pre-tax income (loss) / total premiums) | D57: -0.07821753623 | E57: 0.3232150453 | F57: 0.04788076807 | G57: 0.2414524608 | H57: -0.1536985015 | I57: 0.3447852228 | J57: 0.4481282562 | K57: 0.1911526536 | L57: 0.1493453571 | O57: 0.07251191789

Sheet March 2024
A1: DEARBORN LIFE INSURANCE COMPANY | J1: DO NOT FILE THIS PAGE
A2: MARCH 2024 YTD
A3: INCOME STATEMENT BY LINE OF BUSINESS
A4: $'(000)'s
D6: Regional Accounts Group Insurance
D7: Life | E7: ADD | F7: STD | G7: LTD | H7: Dental | I7: Critical Illness | J7: Accident | K7: Hosp Indem | L7: Vision | M7: STD ASO | N7: LTD ASO | O7: DENTAL ASO | P7: TOTAL
A9: Revenues
A10: Premiums
B11: Insurance premiums | D11: 43989.65721 | E11: 4716.85989 | F11: 23384.22762 | G11: 20675.63808 | H11: 211.6979 | I11: 1936.73134 | J11: 1919.00396 | K11: 244.18996 | L11: 13039.912 | N11: 0 | O11: 0 | P11: 110117.918
B12: ASO claims and fees | D12: 115.33028 | E12: 0 | F12: 0 | G12: 0 | H12: 0 | I12: 0 | J12: 0 | K12: 0 | L12: 0 | M12: 1004.42752 | N12: 0 | O12: 0 | P12: 1119.7578
B13: Annuity premiums | D13: 0 | E13: 0 | F13: 0 | G13: 0 | H13: 0 | I13: 0 | J13: 0 | K13: 0 | L13: 0 | M13: 0 | N13: 0 | O13: 0 | P13: 0
B14: Total premiums | D14: 44104.98749 | E14: 4716.85989 | F14: 23384.22762 | G14: 20675.63808 | H14: 211.6979 | I14: 1936.73134 | J14: 1919.00396 | K14: 244.18996 | L14: 13039.912 | M14: 1004.42752 | N14: 0 | O14: 0 | P14: 111237.6758
A16: Net investment income | D16: 849 | E16: 0 | F16: 137 | G16: 2881 | H16: 1 | I16: 0 | J16: 0 | K16: 0 | L16: 0 | M16: 0 | N16: 0 | O16: 0 | P16: 3868
A17: Realized capital gains (losses) on bond disposals | D17: 0 | E17: 0 | F17: 0 | G17: 0 | H17: 0 | I17: 0 | J17: 0 | K17: 0 | L17: 0 | M17: 0 | N17: 0 | O17: 0 | P17: 0
A18: Realized capital gains (losses) on derivatives | D18: 0 | E18: 0 | F18: 0 | G18: 0 | H18: 0 | I18: 0 | J18: 0 | K18: 0 | L18: 0 | M18: 0 | N18: 0 | O18: 0 | P18: 0
A19: Realized capital losses - impairments | D19: 0 | E19: 0 | F19: 0 | G19: 0 | I19: 0 | J19: 0 | K19: 0 | L19: 0 | M19: 0 | N19: 0 | O19: 0 | P19: 0
A21: Other income
B22: Dental TPA fees
B23: Dental network leasing fees
B24: Other revenues | D24: 0.85438 | E24: 0 | F24: 311.36484 | G24: 0.57592 | H24: 0 | I24: 0 | J24: 0 | K24: 0 | L24: 0 | M24: 0 | N24: 0 | O24: 0 | P24: 312.79514
B25: Total other income | D25: 0.85438 | E25: 0 | F25: 311.36484 | G25: 0.57592 | H25: 0 | I25: 0 | J25: 0 | K25: 0 | L25: 0 | M25: 0 | N25: 0 | O25: 0 | P25: 312.79514
A27: Gross Revenues | D27: 44954.84187 | E27: 4716.85989 | F27: 23832.59246 | G27: 23557.214 | H27: 212.6979 | I27: 1936.73134 | J27: 1919.00396 | K27: 244.18996 | L27: 13039.912 | M27: 1004.42752 | N27: 0 | O27: 0 | P27: 115418.4709
A29: Less: ASO claims | D29: -10 | E29: 0 | F29: 0 | G29: 0 | H29: 0 | I29: 0 | J29: 0 | K29: 0 | L29: 0 | M29: -768.4265 | N29: 0 | O29: 0 | P29: -778.4265
A31: Net Revenues | D31: 44944.84187 | E31: 4716.85989 | F31: 23832.59246 | G31: 23557.214 | H31: 212.6979 | I31: 1936.73134 | J31: 1919.00396 | K31: 244.18996 | L31: 13039.912 | M31: 236.00102 | N31: 0 | O31: 0 | P31: 114640.0444
A33: Incurred Benefits
B34: Insurance claims and reserves | D34: 25311.60431 | E34: -88.55507 | F34: 12433.61536 | G34: 13007.42689 | H34: 116.13592 | I34: 163.95795 | J34: 226.00128 | K34: 142.088 | L34: 7370.74183 | N34: 0 | O34: 0 | P34: 58683.01647
B35: Annuity claims and reserves | D35: 0 | E35: 0 | F35: 0 | G35: 0 | H35: 0 | I35: 0 | M35: 0 | N35: 0 | O35: 0 | P35: 0
A36: Total Incurred Benefits | D36: 25311.60431 | E36: -88.55507 | F36: 12433.61536 | G36: 13007.42689 | H36: 116.13592 | I36: 163.95795 | J36: 226.00128 | K36: 142.088 | L36: 7370.74183 | M36: 0 | N36: 0 | O36: 0 | P36: 58683.01647
A38: Operating Expenses
B39: Commission expense | D39: 6393.1288 | E39: 673.54123 | F39: 3547.29418 | G39: 3329.18334 | H39: 23.7922 | I39: 359.64214 | J39: 353.17319 | K39: 0 | L39: 1548.89645 | N39: 0 | O39: 0 | P39: 16228.65153
B40: General and administrative expense | D40: 6712.320669 | E40: 889.5368438 | F40: 5744.920588 | G40: 3636.417452 | H40: 69.26331 | I40: 531.4416309 | J40: 604.7339428 | K40: 201.9152 | L40: 1834.090753 | M40: 50.221376 | N40: 0 | O40: 0 | P40: 20274.86176
B41: ACA tax | D41: 0 | F41: 0 | G41: 0 | I41: 0 | J41: 0 | K41: 0 | M41: 0 | N41: 0 | O41: 0 | P41: 0
B42: Premium tax | D42: 535.0234604 | E42: 59.01211105 | F42: 257.3683829 | G42: 79.72398682 | H42: 2.621905561 | I42: 22.89651943 | J42: 21.67654673 | K42: 2.881441528 | L42: 152.0741318 | M42: 0 | N42: 0 | O42: 0 | P42: 1133.278486
A43: Total Operating Expenses | D43: 13640.47293 | E43: 1622.090185 | F43: 9549.583151 | G43: 7045.324779 | H43: 95.67741556 | I43: 913.9802903 | J43: 979.5836795 | K43: 204.7966415 | L43: 3535.061335 | M43: 50.221376 | N43: 0 | O43: 0 | P43: 37636.79178
A45: Total Incurred Benefits and Operating Expenses | D45: 38952.07724 | E45: 1533.535115 | F45: 21983.19851 | G45: 20052.75167 | H45: 211.8133356 | I45: 1077.93824 | J45: 1205.58496 | K45: 346.8846415 | L45: 10905.80316 | M45: 50.221376 | N45: 0 | O45: 0 | P45: 96319.80825
A47: Pre-tax Income (Loss) Before TB & C&S Allocation | D47: 5992.764631 | E47: 3183.324775 | F47: 1849.393949 | G47: 3504.462331 | H47: 0.8845644388 | I47: 858.7930997 | J47: 713.4190005 | K47: -102.6946815 | L47: 2134.108835 | M47: 185.779644 | N47: 0 | O47: 0 | P47: 18320.23615
A48: C&S Earnings Allocation | D48: 1045.997817 | E48: 15.7166799 | F48: 53.23291863 | G48: 355.0261894 | H48: 1.738337082 | I48: 10.65483142 | J48: 12.93134582 | K48: 0 | L48: 72.76247495 | M48: 0 | N48: 0 | O48: 0 | P48: 1568.060594
A49: Pre-tax Income (Loss) Before Total Blue Costs
A51: Pre-tax Income (Loss) | D51: 7038.762448 | E51: 3199.041455 | F51: 1902.626868 | G51: 3859.488521 | H51: 2.622901521 | I51: 869.4479311 | J51: 726.3503463 | K51: -102.6946815 | L51: 2206.87131 | M51: 185.779644 | N51: 0 | O51: 0 | P51: 19888.29674
A53: Insurance loss ratio (insurance benefit expenses / insurance premiums) | D53: 0.5753989896 | E53: -0.0187741574 | F53: 0.5317094737 | G53: 0.629118523 | H53: 0.548592688 | I53: 0.08465704386 | J53: 0.1177700957 | K53: 0.581874865 | L53: 0.5652447524 | P53: 0.5329106975
A55: G&A Expense ratio (G&A expenses / insurance premiums incl. ASO) | D55: 0.152189606 | E55: 0.1885866582 | F55: 0.24567502 | G55: 0.1758793338 | H55: 0.3271799579 | I55: 0.2744013173 | J55: 0.315129075 | K55: 0.826877567 | L55: 0.1406520805 | M55: 0.05 | P55: 0.1822661398
A57: Pre-tax Margin (Pre-tax income (loss) / total premiums) | D57: 0.1595910768 | E57: 0.6782142208 | F57: 0.08136368234 | G57: 0.1866684117 | H57: 0.0123898325 | I57: 0.4489254204 | J57: 0.3785038288 | K57: -0.4205524319 | L57: 0.1692397395 | M57: 0.1849607267 | P57: 0.1787910131
